{"text_format":"1","workbook":"xlsx","n_sheets":3,"sheets":["Sheet1","Sheet2","Sheet3"],"not_rendered":{"charts":0,"images":0,"macros":0,"external_links":0,"defined_names":0,"comments":0,"pivot_tables":0},"unopened":[],"bounds":{"document_bytes":16777216,"sheet_cells":100000,"rows_first":2000,"rows_last":500,"rows_between":2000,"halvings":0,"cell_chars":16384,"cell_head_chars":4096},"cells_cut":0,"cells_raw":0,"read":"whole","date_system":"1900"}

{"sheet":"Sheet1","index":0,"n_rows":75,"n_cols":9,"rows_kept":75,"cut":false,"hidden":false,"merged":[[25,0,25,1],[26,0,26,6],[37,0,37,6],[36,0,36,6],[8,0,8,1],[9,0,9,1],[2,0,2,6],[14,0,14,6],[13,0,13,6],[0,0,0,6],[4,0,4,1],[5,0,5,1],[6,0,6,1],[7,0,7,1],[66,1,66,4],[67,1,67,4],[68,1,68,4],[48,0,48,6],[63,1,63,6],[65,1,65,4],[47,0,47,6]]}
["לתלמיד שלום !\nלפניך 4 סיפורים אישיים של תלמידים ולאחריהם שאלונים אישיים ובהם משפטים הלקוחים מהסיפורים.\nקרא/י  כל משפט בעיון וסמנ/י לידו  את המספר המתאר באופן הטוב ביותר את מידת התאמתו אליך.\nעשו כך לגביי כל אחד מהסיפורים ובסיום קבלו משוב על כל הפעילות. "]
[]
["ענה/י בכנות. אין תשובה \"טובה\" או \"לא טובה\", \"נכונה\" או \"שגויה\"."]
[]
["אפשרויות הניקוד:",null,"א","ב","ג","ד"]
["1 = לא מתאים בכלל.",null,{"$f":"COUNTA(C17:G17)","v":0},{"$f":"COUNTA(C29:G29)","v":0},{"$f":"COUNTA(C40:G40)","v":0},{"$f":"COUNTA(C51:G51)","v":0}]
["2 = מתאים לעתים רחוקות.",null,0,0,{"$f":"COUNTA(C41:G41)","v":0},0]
["3 = מתאים לפעמים.",null,0,0,{"$f":"COUNTA(C42:G42)","v":0},0]
["4 = מתאים לעתים קרובות.",null,0,0,{"$f":"COUNTA(C43:G43)","v":0},0]
["5 = כמעט תמיד מתאים.",null,0,0,{"$f":"COUNTA(C44:G44)","v":0},0]
[null,null,0,0,null,0]
[]
[]
["חלק א'"]
["גילי היא נערה בת 15 שקמה תמיד בשעה קבועה ומיד בודקת ביומן שלה מה יש במערכת השעות שלה.\nהיא מאוד מאורגנת וסדר היום שלה מתוכנן מראש. היא קמה כל יום בשעה קבועה והולכת לישון בשעה קבועה.\nכדי להספיק הכול היא כותבת לעצמה את כל המטלות שעליה לעשות כל יום ומסמנת באמצעות צבעים\nמה הכי דחוף וחשוב ומה פחות. "]
[null,"ההיגד","1 = לא מתאים בכלל.","2 = מתאים לעתים רחוקות.","3 = מתאים לפעמים.    ","4 = מתאים לעתים קרובות.","5 = כמעט תמיד מתאים."]
[1,"אני קמ/ה כל בוקר בשעה קבועה.",null,null,null,null,null,{"$f":"IF(C6>1,\"אין לבחור יותר מתשובה אחת לכל היגד\",\" \")","v":" "}]
[2,"אני משתמש/ת ביומן באופן קבוע. ",null,null,null,null,null,{"$f":"IF(C7>1,\"אין לבחור יותר מתשובה אחת לכל היגד\",\" \")","v":" "}]
[3,"יש לי סדר יום קבוע ולא גמיש.",null,null,null,null,null,{"$f":"IF(C8>1,\"אין לבחור יותר מתשובה אחת לכל היגד\",\" \")","v":" "}]
[4,"אני תמיד מתכננ/ת את הזמן שלי מראש. ",null,null,null,null,null,{"$f":"IF(C9>1,\"אין לבחור יותר מתשובה אחת לכל היגד\",\" \")","v":" "}]
[5,"אני יודע/ת להגביל את עצמי בזמנים\nולא לגלוש לדברים אחרים שלא תכננתי מראש. ",null,null,null,null,null,{"$f":"IF(C10>1,\"אין לבחור יותר מתשובה אחת לכל היגד\",\" \")","v":" "}]
[6,"אני די נוקשה עם עצמי באשר לתכנון זמן ולא נוטה לשנות אותו בקלות. ",null,null,null,null,null,{"$f":"IF(C11>1,\"אין לבחור יותר מתשובה אחת לכל היגד\",\" \")","v":" "}]
[7,"אני מרגיש/ה מחויב/ת להספיק את כל מה שתכננתי. ",null,null,null,null,null,{"$f":"IF(C3>1,\"אין לבחור יותר מתשובה אחת לכל היגד\",\" \")","v":" "}]
[null,"סה\"כ ניקוד בחלק א'",{"$f":"COUNTA(C17:C23)","v":0},{"$f":"COUNTA(D17:D23)*2","v":0},{"$f":"COUNTA(E17:E23)*3","v":0},{"$f":"COUNTA(F17:F23)*4","v":0},{"$f":"COUNTA(G17:G23)*5","v":0},{"$f":"SUM(C24:G24)","v":0}]
[]
["חלק ב'"]
["גיא הוא נער בן 15.5 הלומד במגמת מחשבים ומתכונן לבחינות בגרות. לגיא קצת קשה לקום בבוקר ולכן הוא דואג לכך שהוריו יעמדו לידו עד שיקום ויעמוד על רגליו.  מכיוון שגיא מודע לקשיים שלו הוא מקפיד לא לאחר ולתכנן את היום שלו. גיא לא כל כך אוהב להכין שיעורים, אבל הוא מודע לכך שהוא חייב ומכין לעצמו לוח מטלות. הוא כותב לעצמו תזכורות באייפון ודואג להשלים את השיעורים. לפעמים גיא מתעכב קצת בחוץ עם חברים, אבל כאשר הוא חוזר הביתה לקראת 19.00- 19.30 הוא חוזר לחדר שלו ומתארגן מחדש. "]
[null,"ההיגד","1 = לא מתאים בכלל.","2 = מתאים לעתים רחוקות.","3 = מתאים לפעמים.    ","4 = מתאים לעתים קרובות.","5 = כמעט תמיד מתאים."]
[1,"אני מודע ליכולות ולקשיים שלי ויודע/ת להיעזר באחרים בשעת הצורך כדי לעמוד בזמנים.",null,null,null,null,null,{"$f":"IF(D6>1,\"אין לבחור יותר מתשובה אחת לכל היגד\",\" \")","v":" "}]
[2,"אני לא תמיד מספיק/ה להתארגן כפי שאני רוצה אבל אני מודע/ת לחשיבות ארגון הזמן. ",null,null,null,null,null,{"$f":"IF(D7>1,\"אין לבחור יותר מתשובה אחת לכל היגד\",\" \")","v":" "}]
[3,"אני חושב שאני אדם מאורגן, אך לא באופן קיצוני. ",null,null,null,null,null,{"$f":"IF(D8>1,\"אין לבחור יותר מתשובה אחת לכל היגד\",\" \")","v":" "}]
[4,"אני יודע/ת לקחת לעצמי פסקי זמן ולא להיות בלחץ.",null,null,null,null,null,{"$f":"IF(D9>1,\"אין לבחור יותר מתשובה אחת לכל היגד\",\" \")","v":" "}]
[5,"אם אני לא מספיק/ה דברים היום אני אעשה אותם למחרת או בזמן אחר שקבעתי לעצמי. ",null,null,null,null,null,{"$f":"IF(D10>1,\"אין לבחור יותר מתשובה אחת לכל היגד\",\" \")","v":" "}]
[6,"אני נעזר/ת בתזכורות כתובות או אלקטרוניות כדי לארגן את הזמן שלי. ",null,null,null,null,null,{"$f":"IF(D11>1,\"אין לבחור יותר מתשובה אחת לכל היגד\",\" \")","v":" "}]
[null,"סה\"כ ניקוד בחלק ב'",{"$f":"COUNT(C29:C34)","v":0},{"$f":"COUNT(D29:D34)*2","v":0},{"$f":"COUNT(E29:E34)*3","v":0},{"$f":"COUNT(F29:F34)*4","v":0},{"$f":"COUNT(G29:G34)*5","v":0},{"$f":"SUM(C35:G35)","v":0}]
[]
["חלק ג'"]
["נועה קמה כל יום ב- 6.45 היא מתעוררת די בקלות, אבל אוהבת להישאר במיטה כמעט עד לרגע האחרון. בדרך כלל אימא שלה כבר כועסת עליה וצועקת עליה שתקום כבר כי היא תאחר. לפעמים היא שוכחת ציוד בבית ויוצאת ברגע האחרון ומגיעה לבית הספר \"בלי אויר\".  אחרי בית הספר נועה הולכת עם חברות לאט ומדברת איתן ומאחרת לפחות שעה לארוחת צהריים. את השיעורים היא תמיד דוחה לערב ומגיעה אליהם ממש מאוחר, אחרי כל העיסוקים שלה. היא יודעת שקשה לה מאוד להתארגן, אבל היא נוטה לדחות הכול לרגע האחרון.   \n\n"]
["#","ההיגד","1 = לא מתאים בכלל.","2 = מתאים לעתים רחוקות.","3 = מתאים לפעמים.    ","4 = מתאים לעתים קרובות.","5 = כמעט תמיד מתאים."]
[1,"קשה לי להתארגן לפני היציאה מהבית ולכן , לרוב, אני יוצא/ת בלחץ מהבית.",null,null,null,null,null,{"$f":"IF(E6>1,\"אין לבחור יותר מתשובה אחת לכל היגד\",\" \")","v":" "}]
[2,"אני נוטה לשכוח חפצים ומטלות  וצריכ/ה תזכורות.",null,null,null,null,null,{"$f":"IF(E7>1,\"אין לבחור יותר מתשובה אחת לכל היגד\",\" \")","v":" "}]
[3,"אני לא יודע/ת להשתמש בעזרים לארגון זמן. ",null,null,null,null,null,{"$f":"IF(E8>1,\"אין לבחור יותר מתשובה אחת לכל היגד\",\" \")","v":" "}]
[null,"לפעמים אני כותב/ת רשימות/ תזכורות, אך חוזר/ת וקורא/ת  אותן לעתים רחוקות",null,null,null,null,null,{"$f":"IF(E9>1,\"אין לבחור יותר מתשובה אחת לכל היגד\",\" \")","v":" "}]
[4,"הזמן מתבזבז לי די בקלות.",null,null,null,null,null,{"$f":"IF(E10>1,\"אין לבחור יותר מתשובה אחת לכל היגד\",\" \")","v":" "}]
[5,"אני נוטה לדחות מטלות למועד מאוחר יותר. ",null,null,null,null,null,{"$f":"IF(E11>1,\"אין לבחור יותר מתשובה אחת לכל היגד\",\" \")","v":" "}]
[null,"סה\"כ ניקוד בחלק ג'",{"$f":"COUNTA(C40:C45)","v":0},{"$f":"COUNTA(D40:D45)*2","v":0},{"$f":"COUNTA(E40:E45)*3","v":0},{"$f":"COUNTA(F40:F45)*4","v":0},{"$f":"COUNTA(G40:G45)*5","v":0},{"$f":"SUM(C46:G46)","v":0}]
[]
["חלק ד'"]
["יותם בן 14. הוא קם בבוקר לאחר צעקות רבות. אימא שלו מעירה אותו לפחות 3 פעמים, עד שהוא זוחל מהמיטה, כועס ותמיד מאחר לבית הספר. כמעט כל יום עליו להירשם במזכירות בגלל איחור של חצי שעה. יותם בדרך כלל גם רעב בבית הספר ולא כל כך מרוכז, כי הוא לרוב שוכח את הסנדביץ'' שלו בבית. לפעמים הוא מגלה בבית הספר שבאותו יום יש מבחן.  כשהוריו חוזרים מהעבודה הם מזכירים לו להכין שיעורים ואז הוא הולך לחוגים ולא מספיק. הוא יודע שצריך לעשות שינוי, אבל אין לו כוח לכך.                                                                                             "]
["#","ההיגד","1 = לא מתאים בכלל.","2 = מתאים לעתים רחוקות.","3 = מתאים לפעמים.    ","4 = מתאים לעתים קרובות.","5 = כמעט תמיד מתאים."]
[null,"קשה לי מאוד לצאת מהמיטה בבוקר ולהתארגן ביעילות. ",null,null,null,null,null,{"$f":"IF(F6>1,\"אין לבחור יותר מתשובה אחת לכל היגד\",\" \")","v":" "}]
[1,"בבית כועסים עלי ואומרים שאני תמיד מבזבז/ת את הזמן. ",null,null,null,null,null,{"$f":"IF(F7>1,\"אין לבחור יותר מתשובה אחת לכל היגד\",\" \")","v":" "}]
[2,"ברוב המקרים אני שוכח/ת מטלות בבית או שוכח/ת ללמוד למבחנים. ",null,null,null,null,null,{"$f":"IF(F8>1,\"אין לבחור יותר מתשובה אחת לכל היגד\",\" \")","v":" "}]
[3,"אני הכי אוהב/ת את ההפסקות",null,null,null,null,null,{"$f":"IF(F9>1,\"אין לבחור יותר מתשובה אחת לכל היגד\",\" \")","v":" "}]
[4,"אני לא מסוגל/ת ללמוד לאורך זמן וזקוק/ה להפסקות. ",null,null,null,null,null,{"$f":"IF(F10>1,\"אין לבחור יותר מתשובה אחת לכל היגד\",\" \")","v":" "}]
[5,"השולחן שלי נראה לא מסודר",null,null,null,null,null,{"$f":"IF(F11>1,\"אין לבחור יותר מתשובה אחת לכל היגד\",\" \")","v":" "}]
[6,"אין לי רצון ואין לי כוח לשנות את ההרגלים שלי, למרות שאני יודע/ת שזה יכול לעזור לי לתפקד טוב יותר. ",null,null,null,null,null,{"$f":"IF(F3>1,\"אין לבחור יותר מתשובה אחת לכל היגד\",\" \")","v":" "}]
[7,"אני כמעט לא מספיק את מה שאני חייב לעשות במהלך היום. ",null,null,null,null,null,{"$f":"IF(F14>1,\"אין לבחור יותר מתשובה אחת לכל היגד\",\" \")","v":" "}]
[8,"נכשלתי בכמה מבחנים וקיבלתי ציונים נמוכים בגלל הקשיים שלי בארגון זמן.",null,null,null,null,null,{"$f":"IF(F15>1,\"אין לבחור יותר מתשובה אחת לכל היגד\",\" \")","v":" "}]
[null,"סיכום חלק ד'",{"$f":"COUNT(C51:C59)","v":0},{"$f":"COUNT(D51:D59)*2","v":0},{"$f":"COUNT(E51:E59)*3","v":0},{"$f":"COUNT(F51:F59)*5","v":0},{"$f":"COUNT(G51:G59)*5","v":0},{"$f":"SUM(C60:G60)","v":0}]
[]
[]
[null,"סיכום השאלון"]
[null,"כעת בדקו באיזה חלק קיבלתם את הניקוד הגבוה ביותר:"]
[]
[null,"חלק א'- ניכר שאת/ה אדם מאורגן להפליא, אך אפילו נוקשה מדי עם עצמך בדומה לגילי",null,null,null,{"$f":"+H24","v":0}]
[null,"חלק ב'- ניכר שאת/ה אדם היודע/ת לארגן את זמנך באופן מאוזן בדומה לגיא",null,null,null,{"$f":"+H35","v":0}]
[null,"חלק ג'- ניכר שאת/ה אדם אשר נוטה לבזבז את הזמן בדומה נועה",null,null,null,{"$f":"+H46","v":0}]
[null,"חלק ד'- ניכר שאת/ה אדם שלא מתפקד/ת היטב בשל קושי בארגון זמן בדומה ליותם",null,null,null,{"$f":"+H60","v":0}]
[]
[null,"מתוך הנתונים נראה כי אתה אדם ",{"$f":"VLOOKUP(D72,F72:G75,2,FALSE)","v":"מאורגן להפליא, אך אפילו נוקשה מדי עם עצמך"},null,null,null,null,null,"חזותי"]
[null,null,null,{"$f":"MAXA(F66:F69)","v":0},null,{"$f":"F66","v":0},"מאורגן להפליא, אך אפילו נוקשה מדי עם עצמך",null,"שמיעתי"]
[null,null,null,null,null,{"$f":"F67","v":0},"יודע/ת לארגן את זמנו באופן מאוזן",null,"תנועתי"]
[null,null,null,null,null,{"$f":"F68","v":0},"נוטה לבזבז את הזמן"]
[null,null,null,null,null,{"$f":"F69","v":0},"לא מתפקד/ת היטב בשל קושי בארגון זמן"]

{"sheet":"Sheet2","index":1,"n_rows":0,"n_cols":0,"rows_kept":0,"cut":false,"hidden":false,"merged":[]}

{"sheet":"Sheet3","index":2,"n_rows":0,"n_cols":0,"rows_kept":0,"cut":false,"hidden":false,"merged":[]}